[Event "African Championship (W)"]
[Site "followchess.com"]
[Date "2021.05.21"]
[Round "4"]
[White "Moaataz, Ayah"]
[Black "Mwango , Lorita"]
[Result "1/2-1/2"]
[WhiteElo "2028"]
[BlackElo "1912"]
[ECO "A20"]
[WhiteFed "EGY"]
[BlackFed "ZAM"]
[FCGameId "-791413114"]
[WhiteFideId "10615873"]
[BlackFideId "8700478"]
[TimeControl "7200+30"]

1. c4 {[%clk 1:30:57]} e5 {[%clk 1:30:54]} 2. g3 {[%clk 1:31:23]} Nf6 
{[%clk 1:31:13]} 3. Bg2 {[%clk 1:31:47]} d5 {[%clk 1:31:28]} 4. cxd5 
{[%clk 1:32:11]} Nxd5 {[%clk 1:31:43]} 5. Nc3 {[%clk 1:32:21]} Nb6 
{[%clk 1:31:48]} 6. Nf3 {[%clk 1:32:43]} Nc6 {[%clk 1:32:07]} 7. a3 
{[%clk 1:32:49]} Be7 {[%clk 1:32:10]} 8. O-O {[%clk 1:32:41]} O-O 
{[%clk 1:32:26]} 9. b4 {[%clk 1:32:22]} Re8 {[%clk 1:28:48]} 10. Rb1 
{[%clk 1:25:10]} f6 {[%clk 1:23:38]} 11. Qb3+ {[%clk 1:25:03]} Kh8 
{[%clk 1:23:53]} 12. Bb2 {[%clk 1:18:40]} Bf8 {[%clk 1:23:07]} 13. d3 
{[%clk 1:15:07]} Be6 {[%clk 1:22:55]} 14. Qc2 {[%clk 1:15:25]} Rc8 
{[%clk 1:17:09]} 15. Ne4 {[%clk 1:12:18]} Nd7 {[%clk 1:13:21]} 16. e3 
{[%clk 1:09:33]} Ncb8 {[%clk 1:10:15]} 17. d4 {[%clk 1:04:10]} exd4 
{[%clk 1:04:20]} 18. exd4 {[%clk 1:04:24]} c6 {[%clk 1:03:53]} 19. Rfe1 
{[%clk 1:02:07]} Bf7 {[%clk 1:03:42]} 20. Nh4 {[%clk 0:59:37]} Nb6 
{[%clk 1:03:29]} 21. Rbd1 {[%clk 0:53:41]} Nd5 {[%clk 1:03:24]} 22. Nf5 
{[%clk 0:50:50]} g6 {[%clk 1:00:05]} 23. Ne3 {[%clk 0:49:30]} Nd7 
{[%clk 0:58:45]} 24. Nc4 {[%clk 0:47:46]} N7b6 {[%clk 0:57:38]} 25. Na5 
{[%clk 0:47:58]} Qc7 {[%clk 0:56:42]} 26. Nc5 {[%clk 0:47:50]} Rxe1+ 
{[%clk 0:49:43]} 27. Rxe1 {[%clk 0:48:08]} Rb8 {[%clk 0:49:41]} 28. Bh3 
{[%clk 0:43:49]} f5 {[%clk 0:45:47]} 29. Nd3 {[%clk 0:43:05]} Nd7 
{[%clk 0:44:28]} 30. Bg2 {[%clk 0:40:35]} N7f6 {[%clk 0:44:17]} 31. Ne5 
{[%clk 0:40:40]} Bg8 {[%clk 0:43:17]} 32. Nb3 {[%clk 0:39:05]} Bg7 
{[%clk 0:37:46]} 33. Nc5 {[%clk 0:36:17]} a6 {[%clk 0:28:51]} 34. Bc1 
{[%clk 0:36:21]} Ra8 {[%clk 0:28:18]} 35. Bd2 {[%clk 0:36:06]} Rd8 
{[%clk 0:27:38]} 36. h4 {[%clk 0:34:55]} Rf8 {[%clk 0:23:05]} 37. f4 
{[%clk 0:30:25]} Qc8 {[%clk 0:19:58]} 38. Bf3 {[%clk 0:30:21]} Bf7 
{[%clk 0:17:04]} 39. Nxf7+ {[%clk 0:29:32]} Rxf7 {[%clk 0:17:13]} 40. Nd3 
{[%clk 0:59:47]} Re7 {[%clk 0:42:51]} 41. Ne5 {[%clk 0:59:31]} Qe8 
{[%clk 0:41:48]} 42. Kg2 {[%clk 0:58:47]} h5 {[%clk 0:41:28]} 43. a4 
{[%clk 0:57:43]} Kh7 {[%clk 0:41:38]} 44. Rb1 {[%clk 0:57:20]} Rc7 
{[%clk 0:40:23]} 45. Qd3 {[%clk 0:56:51]} Qc8 {[%clk 0:38:36]} 46. Rc1 
{[%clk 0:56:08]} Bf8 {[%clk 0:38:30]} 47. Qb3 {[%clk 0:55:51]} Ne4 
{[%clk 0:35:55]} 48. Be1 {[%clk 0:53:29]} Ndf6 {[%clk 0:35:35]} 49. b5 
{[%clk 0:51:34]} axb5 {[%clk 0:35:14]} 50. axb5 {[%clk 0:51:57]} Bd6 
{[%clk 0:32:40]} 51. Ba5 {[%clk 0:49:37]} Rg7 {[%clk 0:33:00]} 52. bxc6 
{[%clk 0:48:52]} bxc6 {[%clk 0:32:54]} 53. Nxc6 {[%clk 0:35:08]} Qa6 
{[%clk 0:32:35]} 54. Be1 {[%clk 0:28:03]} Rb7 {[%clk 0:32:00]} 55. Qc2 
{[%clk 0:27:04]} Qa3 {[%clk 0:31:04]} 56. Rb1 {[%clk 0:25:30]} Rc7 
{[%clk 0:28:04]} 57. Bf2 {[%clk 0:22:07]} Qa6 {[%clk 0:25:52]} 58. Rc1 
{[%clk 0:20:07]} Ba3 {[%clk 0:25:28]} 59. Qc4 {[%clk 0:18:50]} Qb7 
{[%clk 0:22:24]} 60. Rc2 {[%clk 0:18:37]} Qb1 {[%clk 0:22:10]} 61. Re2 
{[%clk 0:17:05]} Qb7 {[%clk 0:19:07]} 62. d5 {[%clk 0:16:14]} Nxd5 
{[%clk 0:17:02]} 63. Qxd5 {[%clk 0:16:21]} Qxc6 {[%clk 0:13:57]} 64. Bxe4 
{[%clk 0:16:22]} fxe4 {[%clk 0:14:09]} 65. Qxe4 {[%clk 0:16:39]} Qxe4+ 
{[%clk 0:14:21]} 66. Rxe4 {[%clk 0:17:05]} Rc2 {[%clk 0:14:47]} 67. Kf3 
{[%clk 0:17:17]} Bc5 {[%clk 0:13:47]} 68. Bxc5 {[%clk 0:16:06]} Rxc5 
{[%clk 0:14:08]} 69. Re7+ {[%clk 0:16:22]} Kh6 {[%clk 0:14:09]} 70. Re5 
{[%clk 0:16:29]} Rc3+ {[%clk 0:14:32]} 71. Re3 {[%clk 0:16:48]} Rc4 
{[%clk 0:14:26]} 72. g4 {[%clk 0:16:52]} hxg4+ {[%clk 0:14:08]} 73. Kxg4 
{[%clk 0:17:18]} Rc5 {[%clk 0:13:43]} 74. Re6 {[%clk 0:17:26]} Ra5 
{[%clk 0:13:53]} 75. Re5 {[%clk 0:17:23]} Ra1 {[%clk 0:13:57]} 76. Re8 
{[%clk 0:15:47]} Ra5 {[%clk 0:14:06]} 77. Kf3 {[%clk 0:15:10]} Kg7 
{[%clk 0:14:33]} 78. Re6 {[%clk 0:15:22]} Kf7 {[%clk 0:14:01]} 79. Re5 
{[%clk 0:15:37]} Ra1 {[%clk 0:14:21]} 80. h5 {[%clk 0:15:58]} gxh5 
{[%clk 0:14:26]} 81. Rxh5 {[%clk 0:16:22]} Kf6 {[%clk 0:14:50]} 82. Rb5 
{[%clk 0:16:12]} Rf1+ {[%clk 0:14:42]} 1/2-1/2

[Event "African Championship (W)"]
[Site "followchess.com"]
[Date "2021.05.21"]
[Round "4"]
[White "Wafa, Shahenda"]
[Black "Nassr, Lina"]
[Result "1/2-1/2"]
[WhiteElo "2145"]
[BlackElo "1960"]
[ECO "B40"]
[WhiteFed "EGY"]
[BlackFed "ALG"]
[FCGameId "-480246952"]
[WhiteFideId "10609962"]
[BlackFideId "7908075"]
[TimeControl "7200+30"]

1. e4 {[%clk 1:30:56]} c5 {[%clk 1:30:34]} 2. Nf3 {[%clk 1:31:17]} e6 
{[%clk 1:30:56]} 3. c4 {[%clk 1:31:38]} Nc6 {[%clk 1:30:42]} 4. d4 
{[%clk 1:32:01]} cxd4 {[%clk 1:31:05]} 5. Nxd4 {[%clk 1:32:24]} Qb6 
{[%clk 1:30:56]} 6. Nxc6 {[%clk 1:28:19]} dxc6 {[%clk 1:30:51]} 7. Bd3 
{[%clk 1:26:32]} Nf6 {[%clk 1:29:41]} 8. O-O {[%clk 1:23:37]} e5 
{[%clk 1:29:01]} 9. Nc3 {[%clk 1:21:05]} Be7 {[%clk 1:27:47]} 10. Qc2 
{[%clk 1:20:54]} O-O {[%clk 1:27:32]} 11. Be3 {[%clk 1:20:03]} Qc7 
{[%clk 1:27:22]} 12. h3 {[%clk 1:14:14]} Be6 {[%clk 1:24:41]} 13. a3 
{[%clk 1:07:47]} Nh5 {[%clk 1:13:26]} 14. Qe2 {[%clk 0:54:16]} g6 
{[%clk 1:02:41]} 15. Rfe1 {[%clk 0:50:32]} Rfd8 {[%clk 0:53:16]} 16. Rad1 
{[%clk 0:49:26]} Nf4 {[%clk 0:40:38]} 17. Bxf4 {[%clk 0:45:07]} exf4 
{[%clk 0:41:02]} 18. Nd5 {[%clk 0:31:24]} cxd5 {[%clk 0:15:35]} 19. exd5 
{[%clk 0:31:44]} f3 {[%clk 0:06:14]} 20. Qe4 {[%clk 0:31:01]} Bxd5 
{[%clk 0:04:29]} 21. cxd5 {[%clk 0:31:21]} Bf6 {[%clk 0:03:24]} 22. b3 
{[%clk 0:24:03]} fxg2 {[%clk 0:03:22]} 23. Kxg2 {[%clk 0:21:03]} Qd6 
{[%clk 0:03:25]} 24. a4 {[%clk 0:19:07]} Qxd5 {[%clk 0:02:30]} 25. Qxd5 
{[%clk 0:19:01]} Rxd5 {[%clk 0:02:57]} 26. Be4 {[%clk 0:19:21]} Rxd1 
{[%clk 0:01:05]} 27. Rxd1 {[%clk 0:19:47]} Rd8 {[%clk 0:01:10]} 28. Rxd8+ 
{[%clk 0:19:50]} Bxd8 {[%clk 0:01:36]} 29. Bxb7 {[%clk 0:20:14]} a5 
{[%clk 0:01:50]} 30. Bd5 {[%clk 0:18:07]} Be7 {[%clk 0:01:13]} 31. Kg3 
{[%clk 0:18:29]} Kg7 {[%clk 0:01:18]} 1/2-1/2

[Event "African Championship (W)"]
[Site "followchess.com"]
[Date "2021.05.21"]
[Round "4"]
[White "February, Jesse Nikki"]
[Black "Ogbiyoyo, Perpetual Eloho"]
[Result "0-1"]
[WhiteElo "1824"]
[BlackElo "1880"]
[ECO "C53"]
[WhiteFed "RSA"]
[BlackFed "NGR"]
[FCGameId "-338631415"]
[WhiteFideId "14312336"]
[BlackFideId "8509050"]
[TimeControl "7200+30"]

1. e4 {[%clk 1:29:17]} e5 {[%clk 1:30:27]} 2. Nf3 {[%clk 1:29:22]} Nc6 
{[%clk 1:30:49]} 3. Bc4 {[%clk 1:29:24]} Bc5 {[%clk 1:31:06]} 4. c3 
{[%clk 1:29:05]} d6 {[%clk 1:30:44]} 5. d4 {[%clk 1:28:31]} exd4 
{[%clk 1:30:53]} 6. cxd4 {[%clk 1:28:27]} Bb6 {[%clk 1:31:16]} 7. h3 
{[%clk 1:25:57]} Nf6 {[%clk 1:27:40]} 8. Nc3 {[%clk 1:22:50]} h6 
{[%clk 1:21:22]} 9. O-O {[%clk 1:20:21]} O-O {[%clk 1:20:41]} 10. Bf4 
{[%clk 1:18:26]} Nxe4 {[%clk 1:18:09]} 11. d5 {[%clk 1:08:26]} Nxc3 
{[%clk 1:17:04]} 12. bxc3 {[%clk 1:08:52]} Ne7 {[%clk 1:16:25]} 13. Re1 
{[%clk 1:06:47]} Ng6 {[%clk 1:15:41]} 14. Bg3 {[%clk 1:04:57]} Qf6 
{[%clk 1:15:36]} 15. Qd2 {[%clk 1:03:41]} Bxh3 {[%clk 1:12:52]} 16. Re2 
{[%clk 1:00:39]} Bg4 {[%clk 1:11:31]} 17. Qd3 {[%clk 0:59:25]} Bxf3 
{[%clk 1:11:35]} 18. gxf3 {[%clk 0:58:48]} Rfe8 {[%clk 1:08:47]} 19. Rae1 
{[%clk 0:58:22]} Rxe2 {[%clk 1:09:03]} 20. Rxe2 {[%clk 0:58:38]} Qg5 
{[%clk 1:05:13]} 21. Kf1 {[%clk 0:57:35]} h5 {[%clk 1:04:29]} 22. Re4 
{[%clk 0:51:50]} h4 {[%clk 1:04:28]} 23. f4 {[%clk 0:39:22]} Qg4 
{[%clk 0:57:59]} 24. f5 {[%clk 0:35:25]} Qh3+ {[%clk 0:58:04]} 25. Ke2 
{[%clk 0:35:09]} hxg3 {[%clk 0:57:17]} 26. fxg6 {[%clk 0:35:33]} Qh5+ 
{[%clk 0:57:01]} 27. Kd2 {[%clk 0:34:03]} Qg5+ {[%clk 0:54:37]} 28. f4 
{[%clk 0:28:49]} Qxg6 {[%clk 0:54:48]} 29. Qe2 {[%clk 0:28:59]} g2 
{[%clk 0:50:08]} 30. Re8+ {[%clk 0:28:00]} Rxe8 {[%clk 0:50:30]} 31. Qxe8+ 
{[%clk 0:28:25]} Kh7 {[%clk 0:50:56]} 32. Bd3 {[%clk 0:28:45]} Qxd3+ 
{[%clk 0:50:34]} 33. Kxd3 {[%clk 0:29:07]} g1=Q {[%clk 0:51:00]} 34. Qe4+ 
{[%clk 0:28:31]} Qg6 {[%clk 0:50:42]} 35. f5 {[%clk 0:28:21]} Qg3+ 
{[%clk 0:50:54]} 36. Kc4 {[%clk 0:28:25]} f6 {[%clk 0:50:22]} 37. Kb3 
{[%clk 0:25:15]} Ba5 {[%clk 0:49:40]} 38. Qc4 {[%clk 0:20:47]} Qxc3+ 
{[%clk 0:49:53]} 0-1

[Event "African Championship (W)"]
[Site "followchess.com"]
[Date "2021.05.20"]
[Round "3"]
[White "Ogbiyoyo, Perpetual Eloho"]
[Black "Moaataz, Ayah"]
[Result "0-1"]
[WhiteElo "1880"]
[BlackElo "2028"]
[ECO "B18"]
[WhiteFed "NGR"]
[BlackFed "EGY"]
[FCGameId "675709512"]
[WhiteFideId "8509050"]
[BlackFideId "10615873"]
[TimeControl "7200+30"]

1. e4 {[%clk 1:30:35]} c6 {[%clk 1:31:00]} 2. d4 {[%clk 1:30:45]} d5 
{[%clk 1:31:25]} 3. Nc3 {[%clk 1:30:58]} dxe4 {[%clk 1:31:51]} 4. Nxe4 
{[%clk 1:31:14]} Bf5 {[%clk 1:32:19]} 5. Ng3 {[%clk 1:31:28]} Bg6 
{[%clk 1:32:44]} 6. N1e2 {[%clk 1:31:40]} e6 {[%clk 1:33:07]} 7. h4 
{[%clk 1:31:50]} h6 {[%clk 1:33:11]} 8. Nf4 {[%clk 1:32:04]} Bh7 
{[%clk 1:33:19]} 9. Bc4 {[%clk 1:32:14]} Nf6 {[%clk 1:33:24]} 10. Qe2 
{[%clk 1:29:57]} Bd6 {[%clk 1:31:33]} 11. Ngh5 {[%clk 1:29:41]} Nxh5 
{[%clk 1:20:43]} 12. Nxh5 {[%clk 1:29:50]} Rg8 {[%clk 1:20:13]} 13. c3 
{[%clk 1:11:12]} Nd7 {[%clk 1:19:25]} 14. Bd2 {[%clk 1:06:03]} Nf6 
{[%clk 1:12:13]} 15. O-O-O {[%clk 1:01:43]} Nxh5 {[%clk 1:05:45]} 16. Qxh5 
{[%clk 1:02:01]} Qf6 {[%clk 1:06:05]} 17. Be3 {[%clk 0:38:16]} O-O-O 
{[%clk 1:02:44]} 18. Qa5 {[%clk 0:36:26]} Qf5 {[%clk 0:50:54]} 19. Qxf5 
{[%clk 0:35:02]} Bxf5 {[%clk 0:51:20]} 20. f3 {[%clk 0:35:10]} h5 
{[%clk 0:46:18]} 21. b4 {[%clk 0:30:26]} b5 {[%clk 0:41:50]} 22. Bd3 
{[%clk 0:26:10]} Bxd3 {[%clk 0:39:39]} 23. Rxd3 {[%clk 0:26:35]} Bc7 
{[%clk 0:39:41]} 24. Kc2 {[%clk 0:24:49]} Rd5 {[%clk 0:37:58]} 25. Bf2 
{[%clk 0:23:02]} Rgd8 {[%clk 0:37:55]} 26. Rhd1 {[%clk 0:23:04]} a5 
{[%clk 0:36:26]} 27. a3 {[%clk 0:22:58]} g5 {[%clk 0:33:42]} 28. R1d2 
{[%clk 0:19:19]} Rg8 {[%clk 0:33:27]} 29. Re2 {[%clk 0:18:12]} Kd7 
{[%clk 0:28:26]} 30. Rde3 {[%clk 0:16:41]} Bd6 {[%clk 0:26:17]} 31. Re4 
{[%clk 0:16:28]} Be7 {[%clk 0:25:47]} 32. Be1 {[%clk 0:09:54]} a4 
{[%clk 0:22:02]} 33. Kd3 {[%clk 0:09:56]} Rg6 {[%clk 0:22:03]} 34. c4 
{[%clk 0:08:32]} bxc4+ {[%clk 0:22:09]} 35. Kxc4 {[%clk 0:08:54]} f5 
{[%clk 0:22:23]} 36. Re5 {[%clk 0:08:44]} gxh4 {[%clk 0:22:10]} 37. Rxd5+ 
{[%clk 0:06:51]} exd5+ {[%clk 0:22:15]} 38. Kd3 {[%clk 0:07:04]} h3 
{[%clk 0:20:18]} 39. gxh3 {[%clk 0:06:53]} Rg1 {[%clk 0:20:40]} 40. Bc3 
{[%clk 0:35:20]} Rg3 {[%clk 0:44:31]} 41. Ke3 {[%clk 0:29:28]} Bd6 
{[%clk 0:44:34]} 42. Rh2 {[%clk 0:27:56]} Rg1 {[%clk 0:41:54]} 43. Re2 
{[%clk 0:23:41]} Bg3 {[%clk 0:42:06]} 44. f4 {[%clk 0:20:06]} Rf1 
{[%clk 0:40:22]} 45. Rg2 {[%clk 0:14:55]} h4 {[%clk 0:40:40]} 46. Bd2 
{[%clk 0:12:44]} Rxf4 {[%clk 0:40:42]} 47. Kd3 {[%clk 0:12:03]} Rf3+ 
{[%clk 0:40:25]} 48. Kc2 {[%clk 0:12:04]} Rxa3 {[%clk 0:40:18]} 49. Re2 
{[%clk 0:11:55]} Rf3 {[%clk 0:37:17]} 50. Bg5 {[%clk 0:10:29]} Rf2 
{[%clk 0:37:23]} 51. Rxf2 {[%clk 0:10:24]} Bxf2 {[%clk 0:37:51]} 52. Kd3 
{[%clk 0:10:48]} Bg3 {[%clk 0:37:12]} 53. Bd2 {[%clk 0:10:46]} Kc7 
{[%clk 0:37:26]} 0-1

[Event "African Championship (W)"]
[Site "followchess.com"]
[Date "2021.05.20"]
[Round "3"]
[White "Nassr, Lina"]
[Black "February, Jesse Nikki"]
[Result "1/2-1/2"]
[WhiteElo "1960"]
[BlackElo "1824"]
[ECO "A46"]
[WhiteFed "ALG"]
[BlackFed "RSA"]
[FCGameId "-359491277"]
[WhiteFideId "7908075"]
[BlackFideId "14312336"]
[TimeControl "7200+30"]

1. d4 {[%clk 1:30:45]} Nf6 {[%clk 1:30:36]} 2. Nf3 {[%clk 1:30:54]} c5 
{[%clk 1:30:38]} 3. e3 {[%clk 1:30:54]} b6 {[%clk 1:30:22]} 4. Bd3 
{[%clk 1:29:56]} g6 {[%clk 1:29:17]} 5. O-O {[%clk 1:27:05]} Bg7 
{[%clk 1:28:20]} 6. Nbd2 {[%clk 1:24:03]} O-O {[%clk 1:25:06]} 7. c3 
{[%clk 1:15:22]} d6 {[%clk 1:23:52]} 8. e4 {[%clk 1:13:55]} Nbd7 
{[%clk 1:17:44]} 9. e5 {[%clk 1:07:57]} dxe5 {[%clk 1:10:12]} 10. dxe5 
{[%clk 1:02:50]} Ng4 {[%clk 1:07:28]} 11. e6 {[%clk 0:58:49]} fxe6 
{[%clk 1:07:08]} 12. Ng5 {[%clk 0:54:10]} Ndf6 {[%clk 0:53:19]} 13. Be2 
{[%clk 0:38:09]} Ne5 {[%clk 0:48:08]} 14. Qb3 {[%clk 0:31:44]} Qd5 
{[%clk 0:40:15]} 15. f4 {[%clk 0:26:47]} Qxb3 {[%clk 0:37:56]} 16. axb3 
{[%clk 0:26:25]} Nf7 {[%clk 0:37:23]} 17. Bf3 {[%clk 0:25:01]} Rb8 
{[%clk 0:26:20]} 18. Nxf7 {[%clk 0:23:42]} Rxf7 {[%clk 0:25:46]} 19. Rxa7 
{[%clk 0:22:58]} Nd5 {[%clk 0:24:46]} 20. g3 {[%clk 0:18:31]} h6 
{[%clk 0:23:55]} 21. Nc4 {[%clk 0:15:09]} Kf8 {[%clk 0:11:22]} 22. Be4 
{[%clk 0:13:00]} b5 {[%clk 0:07:44]} 23. Ne5 {[%clk 0:08:42]} Bxe5 
{[%clk 0:07:52]} 24. fxe5 {[%clk 0:09:08]} g5 {[%clk 0:02:31]} 25. h4 
{[%clk 0:07:52]} Rxf1+ {[%clk 0:01:19]} 26. Kxf1 {[%clk 0:08:18]} b4 
{[%clk 0:00:58]} 27. c4 {[%clk 0:07:52]} Nb6 {[%clk 0:01:21]} 28. hxg5 
{[%clk 0:06:50]} hxg5 {[%clk 0:01:45]} 29. Bxg5 {[%clk 0:06:52]} Nd7 
{[%clk 0:01:20]} 30. Kg2 {[%clk 0:04:25]} Kf7 {[%clk 0:01:21]} 31. Bf4 
{[%clk 0:03:24]} Nf8 {[%clk 0:01:12]} 32. g4 {[%clk 0:03:15]} Bd7 
{[%clk 0:01:14]} 33. Be3 {[%clk 0:00:47]} Rc8 {[%clk 0:01:06]} 34. Kf3 
{[%clk 0:00:38]} Bc6 {[%clk 0:01:06]} 35. Ra5 {[%clk 0:00:39]} Bxe4+ 
{[%clk 0:01:10]} 36. Kxe4 {[%clk 0:01:07]} Nd7 {[%clk 0:01:27]} 37. Ra7 
{[%clk 0:00:52]} Nf8 {[%clk 0:01:28]} 38. Bg5 {[%clk 0:00:46]} Ng6 
{[%clk 0:01:24]} 39. Ra5 {[%clk 0:00:45]} Nf8 {[%clk 0:01:15]} 40. Bh4 
{[%clk 0:30:38]} Rc7 {[%clk 0:30:50]} 41. Bf2 {[%clk 0:28:37]} Nd7 
{[%clk 0:30:54]} 42. Be3 {[%clk 0:26:18]} Rc8 {[%clk 0:26:32]} 43. Ra1 
{[%clk 0:21:42]} Rg8 {[%clk 0:25:36]} 44. Rf1+ {[%clk 0:14:20]} Ke8 
{[%clk 0:21:03]} 45. g5 {[%clk 0:12:06]} Rh8 {[%clk 0:17:21]} 46. Rg1 
{[%clk 0:05:51]} Rh4+ {[%clk 0:16:25]} 47. Bf4 {[%clk 0:06:09]} Kf7 
{[%clk 0:15:20]} 48. Kf3 {[%clk 0:05:09]} Rh3+ {[%clk 0:12:32]} 49. Bg3 
{[%clk 0:04:08]} Kg6 {[%clk 0:11:12]} 50. Kf4 {[%clk 0:02:54]} Rh5 
{[%clk 0:08:21]} 51. Bf2 {[%clk 0:02:18]} Rh2 {[%clk 0:06:39]} 52. Kg3 
{[%clk 0:00:53]} Rh5 {[%clk 0:06:32]} 53. Kf4 {[%clk 0:00:39]} Rh2 
{[%clk 0:06:47]} 54. Kg3 {[%clk 0:00:36]} Rh5 {[%clk 0:07:06]} 55. Kf4 
{[%clk 0:00:36]} Rh2 {[%clk 0:06:15]} 56. Kg3 {[%clk 0:00:36]} 1/2-1/2

[Event "African Championship (W)"]
[Site "followchess.com"]
[Date "2021.05.20"]
[Round "3"]
[White "Nakabo, Peninah"]
[Black "Mwango , Lorita"]
[Result "0-1"]
[WhiteElo "1730"]
[BlackElo "1912"]
[ECO "B17"]
[WhiteFed "UGA"]
[BlackFed "ZAM"]
[FCGameId "-304613697"]
[WhiteFideId "10004556"]
[BlackFideId "8700478"]
[TimeControl "7200+30"]

1. e4 {[%clk 1:30:55]} c6 {[%clk 1:30:53]} 2. d4 {[%clk 1:31:18]} d5 
{[%clk 1:31:17]} 3. Nc3 {[%clk 1:31:41]} dxe4 {[%clk 1:31:23]} 4. Nxe4 
{[%clk 1:32:03]} Nd7 {[%clk 1:31:34]} 5. Nf3 {[%clk 1:30:48]} Ngf6 
{[%clk 1:31:50]} 6. Ng3 {[%clk 1:30:37]} e6 {[%clk 1:30:32]} 7. Bd3 
{[%clk 1:28:09]} Qc7 {[%clk 1:29:52]} 8. O-O {[%clk 1:27:28]} Bd6 
{[%clk 1:30:05]} 9. c4 {[%clk 1:26:48]} b6 {[%clk 1:30:10]} 10. Re1 
{[%clk 1:26:51]} O-O {[%clk 1:28:36]} 11. Qc2 {[%clk 1:26:18]} Bb7 
{[%clk 1:28:22]} 12. Kh1 {[%clk 1:19:26]} c5 {[%clk 1:27:44]} 13. Be3 
{[%clk 1:15:42]} Bf4 {[%clk 1:22:59]} 14. Qd2 {[%clk 1:11:23]} Bxe3 
{[%clk 1:19:24]} 15. fxe3 {[%clk 1:08:14]} Rad8 {[%clk 1:18:10]} 16. Qe2 
{[%clk 1:01:46]} Rfe8 {[%clk 1:16:20]} 17. Ng5 {[%clk 0:59:24]} h6 
{[%clk 1:15:39]} 18. N5e4 {[%clk 0:59:32]} Nxe4 {[%clk 1:15:32]} 19. Bxe4 
{[%clk 0:59:14]} Nf6 {[%clk 1:15:21]} 20. Bxb7 {[%clk 0:58:54]} Qxb7 
{[%clk 1:15:37]} 21. Rad1 {[%clk 0:57:18]} cxd4 {[%clk 1:14:35]} 22. exd4 
{[%clk 0:56:42]} Rd7 {[%clk 1:14:38]} 23. Rd2 {[%clk 0:55:03]} Red8 
{[%clk 1:14:58]} 24. Red1 {[%clk 0:54:44]} Qc7 {[%clk 1:14:51]} 25. Kg1 
{[%clk 0:51:33]} Qf4 {[%clk 1:12:39]} 26. Qf3 {[%clk 0:48:32]} Qh4 
{[%clk 1:11:44]} 27. Ne2 {[%clk 0:45:56]} Ng4 {[%clk 1:07:11]} 28. h3 Nf6 
{[%clk 1:03:37]} 29. Qg3 {[%clk 0:37:03]} Qh5 {[%clk 1:01:55]} 30. Nf4 
{[%clk 0:34:46]} Qa5 {[%clk 1:01:40]} 31. Qa3 {[%clk 0:29:52]} Qxa3 
{[%clk 0:57:03]} 32. bxa3 Rc8 33. Rc2 {[%clk 0:28:40]} b5 {[%clk 0:47:26]} 34. 
c5 {[%clk 0:28:01]} e5 {[%clk 0:46:14]} 35. Ne2 {[%clk 0:28:01]} exd4 
{[%clk 0:42:33]} 36. c6 {[%clk 0:24:28]} Rd6 {[%clk 0:37:51]} 37. Rdd2 Rdxc6 38. 
Rxd4 {[%clk 0:23:13]} Rd8 39. Rxd8+ 0-1

[Event "African Championship (W)"]
[Site "followchess.com"]
[Date "2021.05.19"]
[Round "2"]
[White "Wafa, Shahenda"]
[Black "Marape, Naledi"]
[Result "1/2-1/2"]
[WhiteElo "2145"]
[BlackElo "1717"]
[ECO "C97"]
[WhiteFed "EGY"]
[BlackFed "BOT"]
[FCGameId "-712004088"]
[WhiteFideId "10609962"]
[BlackFideId "11310880"]
[TimeControl "7200+30"]

1. e4 e5 2. Nf3 Nc6 3. Bb5 a6 4. Ba4 Nf6 5. O-O b5 6. Bb3 Be7 7. Re1 d6 8. c3 
Na5 9. Bc2 c5 10. d4 Qc7 11. Nbd2 O-O 12. h3 Bb7 13. d5 Rfb8 14. b3 Bc8 15. Nf1 
Bf8 16. Bg5 Ne8 17. Ng3 g6 18. Qd2 c4 19. b4 Nb7 20. Bh6 Bg7 21. Bxg7 Kxg7 22. 
Nh2 a5 23. a3 Ra6 24. f4 f6 25. h4 Rba8 26. Rac1 axb4 27. axb4 Ra2 28. f5 R8a3 
29. Ng4 Qf7 30. Rf1 Nd8 31. Qh6+ Kg8 32. Bd1 Qa7+ 33. Qe3 Qxe3+ 34. Nxe3 Rd2 35. 
Ne2 Raa2 36. Ng3 Rd3 37. Rf3 Ra3 38. Ng4 Rxf3 39. Bxf3 Kg7 40. Ne3 Nf7 41. Kf2 
Nh6 42. Rc2 Kf7 43. Ng4 Ng8 44. Ne3 Nh6 45. Bg4 Nxg4+ 46. Nxg4 Kg7 47. Ne3 Kf7 
48. fxg6+ hxg6 49. h5 gxh5 50. Nxh5 Ng7 51. Nxg7 Kxg7 1/2-1/2

[Event "African Championship (W)"]
[Site "followchess.com"]
[Date "2021.05.19"]
[Round "2"]
[White "Moaataz, Ayah"]
[Black "Nassr, Manel"]
[Result "1-0"]
[WhiteElo "2028"]
[BlackElo "1670"]
[ECO "A15"]
[WhiteFed "EGY"]
[BlackFed "ALG"]
[FCGameId "-599634845"]
[WhiteFideId "10615873"]
[BlackFideId "7911696"]
[TimeControl "7200+30"]

1. c4 {[%clk 1:30:56]} Nf6 {[%clk 1:30:22]} 2. g3 {[%clk 1:31:19]} c6 
{[%clk 1:30:06]} 3. Bg2 {[%clk 1:31:38]} d5 {[%clk 1:30:09]} 4. Nf3 
{[%clk 1:31:46]} Bg4 {[%clk 1:29:54]} 5. Ne5 {[%clk 1:31:54]} Bf5 
{[%clk 1:29:27]} 6. cxd5 {[%clk 1:31:49]} cxd5 {[%clk 1:29:31]} 7. Nc3 
{[%clk 1:28:10]} e6 {[%clk 1:28:47]} 8. g4 {[%clk 1:27:34]} Bg6 {[%clk 1:26:26]} 
9. h4 {[%clk 1:27:37]} h5 {[%clk 1:23:41]} 10. Nxg6 {[%clk 1:26:50]} fxg6 
{[%clk 1:23:43]} 11. g5 {[%clk 1:24:08]} Ng8 {[%clk 1:19:47]} 12. d4 
{[%clk 1:19:27]} Bd6 {[%clk 1:17:43]} 13. e4 {[%clk 1:19:29]} Ne7 
{[%clk 1:15:21]} 14. Bh3 {[%clk 1:15:35]} dxe4 {[%clk 1:12:19]} 15. Bxe6 
{[%clk 1:15:25]} Nf5 {[%clk 1:10:55]} 16. Qa4+ {[%clk 1:07:19]} Ke7 
{[%clk 1:06:47]} 17. Bb3 {[%clk 0:47:25]} Nc6 {[%clk 0:56:56]} 18. Qc4 
{[%clk 0:40:17]} Qd7 {[%clk 0:51:46]} 19. Be3 {[%clk 0:32:28]} Nxe3 
{[%clk 0:50:40]} 20. fxe3 {[%clk 0:32:54]} Bg3+ {[%clk 0:51:01]} 21. Kd2 
{[%clk 0:33:00]} Rhf8 {[%clk 0:47:22]} 22. Raf1 {[%clk 0:30:11]} Rf5 
{[%clk 0:40:05]} 23. Nxe4 {[%clk 0:28:15]} Bc7 {[%clk 0:40:01]} 24. Nc5 
{[%clk 0:26:06]} Ba5+ {[%clk 0:38:18]} 25. Kc1 {[%clk 0:25:59]} Qc8 
{[%clk 0:37:32]} 26. Rxf5 {[%clk 0:26:06]} Qxf5 {[%clk 0:37:20]} 27. Rf1 
{[%clk 0:26:16]} Qh3 {[%clk 0:34:04]} 28. Qf7+ {[%clk 0:25:32]} Kd8 
{[%clk 0:33:50]} 29. Qf8+ {[%clk 0:24:39]} Kc7 {[%clk 0:33:42]} 30. Rf7+ 
{[%clk 0:25:04]} Ne7 {[%clk 0:32:47]} 31. Qxe7+ {[%clk 0:25:22]} Kc6 
{[%clk 0:32:47]} 32. Qxb7+ {[%clk 0:25:20]} Kd6 {[%clk 0:32:59]} 33. Qd5# 
{[%clk 0:25:44]} {-error} 1-0